[Event "Goteborg Open 2018"]
[Site "Molnlycke kulturhus, Biblioteksgatan 2, Molnlycke, Sweden"]
[Date "2018.08.18"]
[Round "6.5"]
[White "Rydstrom, Tom"]
[Black "Buzleta, Patrik"]
[Result "1-0"]
[TimeControl "15 minutes + 5 seconds per move from move one (Round 1 - 4) / 90 minutes + 30 seconds per move from move one (Round 5 - 8)"]
[WhiteTitle "FM"]
[WhiteFideId "1714830"]
[BlackFideId "1755463"]
[WhiteElo "2316"]
[BlackElo "1501"]

1. e4 {[%clk 01:22:30]} {[%emt 00:08:29]} e6 {[%clk 01:30:25]} {[%emt
00:00:35]} 2. d4 {[%clk 01:22:57]} {[%emt 00:00:03]} d6 {[%clk 01:30:43]}
{[%emt 00:00:13]} 3. Nc3 {[%clk 01:23:20]} {[%emt 00:00:07]} a6 {[%clk
01:30:42]} {[%emt 00:00:31]} 4. Bd3 {[%clk 01:23:23]} {[%emt 00:00:27]} g6
{[%clk 01:30:50]} {[%emt 00:00:22]} 5. Be3 {[%clk 01:23:29]} {[%emt 00:00:24]}
Bg7 {[%clk 01:30:51]} {[%emt 00:00:29]} 6. h4 {[%clk 01:23:23]} {[%emt
00:00:36]} h6 {[%clk 01:31:00]} {[%emt 00:00:21]} 7. Nge2 {[%clk 01:22:45]}
{[%emt 00:01:07]} Ne7 {[%clk 01:30:50]} {[%emt 00:00:40]} 8. h5 {[%clk
01:22:58]} {[%emt 00:00:18]} Qd7 {[%clk 01:28:44]} {[%emt 00:02:37]} 9. hxg6
{[%clk 01:23:14]} {[%emt 00:00:13]} Nxg6 {[%clk 01:28:38]} {[%emt 00:00:36]} 10.
Qd2 {[%clk 01:23:28]} {[%emt 00:00:16]} h5 {[%clk 01:27:53]} {[%emt 00:01:16]}
11. f4 {[%clk 01:22:43]} {[%emt 00:01:16]} Ne7 {[%clk 01:25:55]} {[%emt
00:02:27]} 12. O-O-O {[%clk 01:21:58]} {[%emt 00:01:14]} b5 {[%clk 01:25:48]}
{[%emt 00:00:38]} 13. a3 {[%clk 01:22:12]} {[%emt 00:00:17]} Bb7 {[%clk
01:25:42]} {[%emt 00:00:36]} 14. Rh3 {[%clk 01:18:53]} {[%emt 00:03:48]} h4
{[%clk 01:21:44]} {[%emt 00:04:29]} 15. Rdh1 {[%clk 01:18:41]} {[%emt
00:00:40]} Nbc6 {[%clk 01:21:32]} {[%emt 00:00:45]} 16. Rxh4 {[%clk 01:18:20]}
{[%emt 00:00:50]} Rxh4 {[%clk 01:21:48]} {[%emt 00:00:14]} 17. Rxh4 {[%clk
01:18:48]} {[%emt 00:00:02]} b4 {[%clk 01:21:39]} {[%emt 00:00:39]} 18. axb4
{[%clk 01:19:11]} {[%emt 00:00:07]} Nxb4 {[%clk 01:21:55]} {[%emt 00:00:14]} 19.
Rh7 {[%clk 01:19:16]} {[%emt 00:00:24]} Nxd3+ {[%clk 01:21:56]} {[%emt
00:00:29]} 20. Qxd3 {[%clk 01:19:35]} {[%emt 00:00:11]} Bf8 {[%clk 01:21:55]}
{[%emt 00:00:31]} 21. g4 {[%clk 01:16:05]} {[%emt 00:04:00]} Ng8 {[%clk
01:17:26]} {[%emt 00:04:58]} 22. g5 {[%clk 01:15:42]} {[%emt 00:00:53]} O-O-O
{[%clk 01:16:18]} {[%emt 00:01:38]} 23. g6 {[%clk 01:15:28]} {[%emt 00:00:44]}
Nf6 {[%clk 01:14:39]} {[%emt 00:02:09]} 24. Rxf7 {[%clk 01:14:09]} {[%emt
00:01:49]} Be7 {[%clk 01:14:52]} {[%emt 00:00:17]} 25. e5 {[%clk 01:13:30]}
{[%emt 00:01:10]} Ng4 {[%clk 01:14:47]} {[%emt 00:00:34]} 26. Kb1 {[%clk
01:10:32]} {[%emt 00:03:28]} Qe8 {[%clk 01:14:49]} {[%emt 00:00:28]} 27. exd6
{[%clk 01:07:18]} {[%emt 00:03:45]} Bxd6 {[%clk 01:13:15]} {[%emt 00:02:03]} 28.
Ne4 {[%clk 01:07:40]} {[%emt 00:00:08]} Be7 {[%clk 01:11:54]} {[%emt 00:01:50]}
29. N2g3 {[%clk 01:03:40]} {[%emt 00:04:30]} e5 {[%clk 01:08:57]} {[%emt
00:03:22]} 30. Nf5 {[%clk 00:58:33]} {[%emt 00:05:42]} Bf8 {[%clk 01:07:37]}
{[%emt 00:01:49]} 31. Qc4 {[%clk 00:53:49]} {[%emt 00:05:15]} Qxf7 {[%clk
01:02:06]} {[%emt 00:06:01]} 32. Qxf7 {[%clk 00:52:52]} {[%emt 00:01:26]} Bxe4
{[%clk 01:02:20]} {[%emt 00:00:14]} 33. g7 {[%clk 00:52:16]} {[%emt 00:01:07]}
Bxg7 {[%clk 01:01:56]} {[%emt 00:00:54]} 34. Nxg7 {[%clk 00:52:44]} {[%emt
00:00:03]} Nxe3 {[%clk 01:02:04]} {[%emt 00:00:21]} 35. Ne6 {[%clk 00:52:48]}
{[%emt 00:00:26]} Nd5 {[%clk 01:01:10]} {[%emt 00:01:24]} 36. Nxd8 {[%clk
00:53:10]} {[%emt 00:00:09]} 1-0

[Event "Goteborg Open 2018"]
[Site "Molnlycke kulturhus, Biblioteksgatan 2, Molnlycke, Sweden"]
[Date "2018.08.18"]
[Round "6.6"]
[White "Rasti, Arvin"]
[Black "Degerfeldt, Sven"]
[Result "1-0"]
[TimeControl "15 minutes + 5 seconds per move from move one (Round 1 - 4) / 90 minutes + 30 seconds per move from move one (Round 5 - 8)"]
[WhiteFideId "1741160"]
[BlackFideId "1717430"]
[WhiteElo "2091"]
[BlackElo "1954"]

1. d4 {[%clk 01:30:56]} {[%emt 00:03:47]} Nf6 {[%clk 01:30:51]} {[%emt
00:00:09]} 2. Nf3 {[%clk 01:31:17]} {[%emt 00:00:09]} d5 {[%clk 01:30:32]}
{[%emt 00:00:50]} 3. Bf4 {[%clk 01:31:38]} {[%emt 00:00:08]} e6 {[%clk
01:30:45]} {[%emt 00:00:17]} 4. e3 {[%clk 01:31:53]} {[%emt 00:00:15]} c5
{[%clk 01:30:42]} {[%emt 00:00:32]} 5. c3 {[%clk 01:32:01]} {[%emt 00:00:23]}
Nc6 {[%clk 01:31:03]} {[%emt 00:00:09]} 6. Nbd2 {[%clk 01:32:18]} {[%emt
00:00:13]} Bd6 {[%clk 01:29:30]} {[%emt 00:02:02]} 7. Bg3 {[%clk 01:32:35]}
{[%emt 00:00:13]} O-O {[%clk 01:28:22]} {[%emt 00:01:38]} 8. Bd3 {[%clk
01:32:47]} {[%emt 00:00:18]} b6 {[%clk 01:27:33]} {[%emt 00:01:19]} 9. Qe2
{[%clk 01:32:15]} {[%emt 00:01:02]} cxd4 {[%clk 01:11:31]} {[%emt 00:16:33]} 10.
exd4 {[%clk 01:32:37]} {[%emt 00:00:08]} Bb7 {[%clk 01:07:10]} {[%emt
00:04:51]} 11. Ne5 {[%clk 01:26:07]} {[%emt 00:06:59]} g6 {[%clk 01:06:36]}
{[%emt 00:01:04]} 12. O-O {[%clk 01:20:37]} {[%emt 00:05:59]} Bxe5 {[%clk
01:03:52]} {[%emt 00:03:15]} 13. Bxe5 {[%clk 01:20:04]} {[%emt 00:01:03]} Nxe5
{[%clk 01:03:56]} {[%emt 00:00:26]} 14. Qxe5 {[%clk 01:19:09]} {[%emt
00:01:25]} Qe7 {[%clk 01:04:06]} {[%emt 00:00:20]} 15. a4 {[%clk 01:16:20]}
{[%emt 00:03:20]} a6 {[%clk 01:01:13]} {[%emt 00:03:23]} 16. Rfe1 {[%clk
01:14:01]} {[%emt 00:02:48]} Rfc8 {[%clk 00:57:17]} {[%emt 00:04:26]} 17. h3
{[%clk 01:12:08]} {[%emt 00:02:24]} Nd7 {[%clk 00:51:50]} {[%emt 00:05:56]} 18.
Qe2 {[%clk 01:10:47]} {[%emt 00:01:51]} Re8 {[%clk 00:49:49]} {[%emt 00:02:31]}
19. Nb3 {[%clk 01:06:22]} {[%emt 00:04:56]} Qd6 {[%clk 00:49:48]} {[%emt
00:00:30]} 20. Qd2 {[%clk 00:58:09]} {[%emt 00:08:44]} e5 {[%clk 00:43:58]}
{[%emt 00:06:20]} 21. dxe5 {[%clk 00:58:06]} {[%emt 00:00:33]} Nxe5 {[%clk
00:39:31]} {[%emt 00:04:56]} 22. Nd4 {[%clk 00:54:35]} {[%emt 00:04:02]} Nc4
{[%clk 00:35:58]} {[%emt 00:04:02]} 23. Bxc4 {[%clk 00:46:14]} {[%emt
00:08:52]} dxc4 {[%clk 00:35:52]} {[%emt 00:00:35]} 24. Qg5 {[%clk 00:46:16]}
{[%emt 00:00:27]} Kh8 {[%clk 00:24:51]} {[%emt 00:11:32]} 25. Rad1 {[%clk
00:42:31]} {[%emt 00:04:16]} Bd5 {[%clk 00:15:09]} {[%emt 00:10:11]} 26. Rxe8+
{[%clk 00:31:00]} {[%emt 00:12:02]} Rxe8 {[%clk 00:15:26]} {[%emt 00:00:13]} 27.
Nf3 {[%clk 00:30:23]} {[%emt 00:01:07]} f5 {[%clk 00:13:38]} {[%emt 00:02:17]}
28. Qh4 {[%clk 00:25:41]} {[%emt 00:05:13]} Qc6 29. Qd4+ {[%clk 00:25:41]} 1-0

[Event "Goteborg Open 2018"]
[Site "Molnlycke kulturhus, Biblioteksgatan 2, Molnlycke, Sweden"]
[Date "2018.08.18"]
[Round "6.7"]
[White "Nilsson, Eskil"]
[Black "Kardell, Mathias"]
[Result "1-0"]
[TimeControl "15 minutes + 5 seconds per move from move one (Round 1 - 4) / 90 minutes + 30 seconds per move from move one (Round 5 - 8)"]
[WhiteFideId "1716220"]
[BlackFideId "1710109"]
[WhiteElo "1928"]
[BlackElo "2084"]

1. e4 {[%clk 01:30:53]} {[%emt 00:00:05]} d5 {[%clk 01:30:49]} {[%emt
00:00:12]} 2. exd5 {[%clk 01:31:16]} {[%emt 00:00:08]} Qxd5 {[%clk 01:31:11]}
{[%emt 00:00:08]} 3. Nc3 {[%clk 01:31:38]} {[%emt 00:00:08]} Qa5 {[%clk
01:31:31]} {[%emt 00:00:10]} 4. d4 {[%clk 01:31:57]} {[%emt 00:00:10]} c6
{[%clk 01:31:48]} {[%emt 00:00:13]} 5. Nf3 {[%clk 01:32:07]} {[%emt 00:00:20]}
Nf6 {[%clk 01:31:42]} {[%emt 00:00:36]} 6. Bc4 {[%clk 01:30:51]} {[%emt
00:01:46]} Bf5 {[%clk 01:29:19]} {[%emt 00:02:53]} 7. Ne5 {[%clk 01:29:36]}
{[%emt 00:01:44]} e6 {[%clk 01:27:41]} {[%emt 00:02:09]} 8. Qe2 {[%clk
01:22:55]} {[%emt 00:07:10]} Be7 {[%clk 01:15:53]} {[%emt 00:12:19]} 9. Bd2
{[%clk 01:15:57]} {[%emt 00:07:28]} Qc7 {[%clk 01:10:13]} {[%emt 00:06:10]} 10.
g4 {[%clk 01:14:03]} {[%emt 00:02:25]} Bg6 {[%clk 01:02:23]} {[%emt 00:08:20]}
11. h4 {[%clk 01:06:28]} {[%emt 00:08:05]} b5 {[%clk 00:45:08]} {[%emt
00:17:46]} 12. Nxg6 {[%clk 00:44:03]} {[%emt 00:22:55]} hxg6 {[%clk 00:43:39]}
{[%emt 00:01:59]} 13. Bd3 {[%clk 00:39:53]} {[%emt 00:04:40]} Nbd7 {[%clk
00:38:50]} {[%emt 00:05:19]} 14. O-O-O {[%clk 00:38:49]} {[%emt 00:01:34]}
O-O-O {[%clk 00:33:57]} {[%emt 00:05:23]} 15. Qf3 {[%clk 00:36:11]} {[%emt
00:03:09]} Rdf8 {[%clk 00:28:25]} {[%emt 00:06:01]} 16. g5 {[%clk 00:22:05]}
{[%emt 00:14:36]} Nd5 {[%clk 00:26:29]} {[%emt 00:02:25]} 17. Rde1 {[%clk
00:21:51]} {[%emt 00:00:45]} Bd6 {[%clk 00:22:26]} {[%emt 00:04:33]} 18. Nxd5
{[%clk 00:18:55]} {[%emt 00:03:26]} exd5 {[%clk 00:22:19]} {[%emt 00:00:36]} 19.
Rh3 {[%clk 00:16:42]} {[%emt 00:02:43]} Nb6 {[%clk 00:18:54]} {[%emt 00:03:56]}
20. b3 {[%clk 00:16:39]} {[%emt 00:00:33]} Re8 {[%clk 00:14:31]} {[%emt
00:04:52]} 21. Rxe8+ {[%clk 00:15:54]} {[%emt 00:01:16]} Rxe8 {[%clk 00:14:55]}
{[%emt 00:00:06]} 22. h5 {[%clk 00:16:17]} {[%emt 00:00:08]} gxh5 {[%clk
00:14:01]} {[%emt 00:01:24]} 23. Rxh5 {[%clk 00:16:41]} {[%emt 00:00:06]} Qe7
{[%clk 00:13:45]} {[%emt 00:00:45]} 24. c3 {[%clk 00:16:27]} {[%emt 00:00:44]}
Nd7 {[%clk 00:09:24]} {[%emt 00:04:52]} 25. Rh7 {[%clk 00:15:29]} {[%emt
00:01:27]} Rg8 {[%clk 00:08:54]} {[%emt 00:01:00]} 26. Bf5 {[%clk 00:15:08]}
{[%emt 00:00:51]} Kb7 {[%clk 00:06:59]} {[%emt 00:02:25]} 27. Kc2 {[%clk
00:13:00]} {[%emt 00:02:39]} Nf8 {[%clk 00:05:04]} {[%emt 00:02:25]} 28. Rh1
{[%clk 00:13:25]} {[%emt 00:00:04]} Ne6 {[%clk 00:05:00]} {[%emt 00:00:35]} 29.
Qg4 {[%clk 00:13:08]} {[%emt 00:00:47]} g6 {[%clk 00:03:27]} {[%emt 00:02:03]}
30. Bd3 {[%clk 00:13:26]} {[%emt 00:00:12]} Qc7 {[%clk 00:02:19]} {[%emt
00:01:38]} 31. c4 {[%clk 00:13:02]} {[%emt 00:00:55]} Bf4 {[%clk 00:01:46]}
{[%emt 00:01:03]} 32. Bxf4 {[%clk 00:12:33]} {[%emt 00:00:58]} Nxf4 {[%clk
00:01:57]} {[%emt 00:00:19]} 33. Qg3 {[%clk 00:10:36]} {[%emt 00:02:27]} Re8
{[%clk 00:01:08]} {[%emt 00:01:20]} 34. Rh4 {[%clk 00:09:23]} {[%emt 00:01:43]}
bxc4 {[%clk 00:00:44]} {[%emt 00:00:55]} 35. Qxf4 {[%clk 00:08:26]} {[%emt
00:01:26]} cxd3+ {[%clk 00:00:46]} {[%emt 00:00:28]} 36. Kxd3 {[%clk 00:08:51]}
{[%emt 00:00:05]} Qe7 {[%clk 00:00:50]} {[%emt 00:00:26]} 37. Qd2 {[%clk
00:07:33]} {[%emt 00:01:48]} Qa3 {[%clk 00:01:05]} {[%emt 00:00:15]} 38. Rf4
{[%clk 00:06:37]} {[%emt 00:01:24]} Qa6+ {[%clk 00:01:03]} {[%emt 00:00:34]} 39.
Kc3 {[%clk 00:06:35]} {[%emt 00:00:32]} Qa5+ {[%clk 00:00:36]} {[%emt
00:00:57]} 40. Kd3 {[%clk 00:06:58]} {[%emt 00:00:07]} Qb5+ {[%clk 00:00:41]}
{[%emt 00:00:25]} 41. Kc3 {[%clk 00:07:14]} {[%emt 00:00:14]} Qa5+ {[%clk
00:00:36]} {[%emt 00:00:35]} 42. Kd3 {[%clk 00:07:39]} {[%emt 00:00:05]} Qa6+
{[%clk 00:00:39]} {[%emt 00:00:27]} 43. Kc3 {[%clk 00:08:05]} {[%emt 00:00:04]}
Re2 {[%clk 00:00:34]} {[%emt 00:00:35]} 44. Rxf7+ {[%clk 00:08:20]} {[%emt
00:00:15]} Kb6 {[%clk 00:00:52]} {[%emt 00:00:12]} 45. Qf4 {[%clk 00:05:54]}
{[%emt 00:02:56]} Rxa2 {[%clk 00:00:33]} {[%emt 00:00:51]} 46. Qb8+ {[%clk
00:05:57]} {[%emt 00:00:26]} Ka5 {[%clk 00:00:47]} {[%emt 00:00:16]} 47. Qb4#
{[%emt 00:01:17]} 1-0

[Event "Goteborg Open 2018"]
[Site "Molnlycke kulturhus, Biblioteksgatan 2, Molnlycke, Sweden"]
[Date "2018.08.18"]
[Round "6.8"]
[White "Nyberg, Ulf"]
[Black "Olsson, William"]
[Result "1-0"]
[TimeControl "15 minutes + 5 seconds per move from move one (Round 1 - 4) / 90 minutes + 30 seconds per move from move one (Round 5 - 8)"]
[WhiteFideId "1705083"]
[BlackFideId "1741721"]
[WhiteElo "2084"]
[BlackElo "1931"]

1. e4 {[%clk 01:29:47]} {[%emt 00:01:11]} c5 {[%clk 01:30:49]} {[%emt
00:00:12]} 2. a3 {[%clk 01:29:15]} {[%emt 00:01:02]} Nc6 {[%clk 01:30:38]}
{[%emt 00:00:41]} 3. b4 {[%clk 01:29:11]} {[%emt 00:00:33]} e5 {[%clk
01:27:51]} {[%emt 00:03:18]} 4. b5 {[%clk 01:27:05]} {[%emt 00:02:34]} Nd4
{[%clk 01:27:36]} {[%emt 00:00:46]} 5. c3 {[%clk 01:26:16]} {[%emt 00:01:18]}
Ne6 {[%clk 01:28:01]} {[%emt 00:00:06]} 6. Bc4 {[%clk 01:25:10]} {[%emt
00:01:36]} Nf6 {[%clk 01:27:13]} {[%emt 00:01:18]} 7. d3 {[%clk 01:24:53]}
{[%emt 00:00:46]} b6 {[%clk 01:23:29]} {[%emt 00:04:15]} 8. Nf3 {[%clk
01:18:03]} {[%emt 00:07:19]} Qc7 {[%clk 01:23:01]} {[%emt 00:01:00]} 9. O-O
{[%clk 01:17:53]} {[%emt 00:00:38]} Bb7 {[%clk 01:23:17]} {[%emt 00:00:15]} 10.
Re1 {[%clk 01:17:01]} {[%emt 00:01:21]} Be7 {[%clk 01:22:34]} {[%emt 00:01:12]}
11. Nbd2 {[%clk 01:15:39]} {[%emt 00:01:53]} O-O {[%clk 01:21:51]} {[%emt
00:01:14]} 12. Nf1 {[%clk 01:15:47]} {[%emt 00:00:22]} Ne8 {[%clk 01:17:39]}
{[%emt 00:04:42]} 13. Ne3 {[%clk 01:14:58]} {[%emt 00:01:19]} Bf6 {[%clk
01:16:49]} {[%emt 00:01:20]} 14. Nd5 {[%clk 01:09:46]} {[%emt 00:05:41]} Qd8
{[%clk 01:14:41]} {[%emt 00:02:38]} 15. g3 {[%clk 01:08:17]} {[%emt 00:01:58]}
Nd6 {[%clk 01:13:30]} {[%emt 00:01:42]} 16. h4 {[%clk 01:05:58]} {[%emt
00:02:49]} h6 {[%clk 01:08:22]} {[%emt 00:05:39]} 17. Nh2 {[%clk 01:03:02]}
{[%emt 00:03:25]} Be7 {[%clk 00:49:09]} {[%emt 00:19:43]} 18. Qh5 {[%clk
01:00:11]} {[%emt 00:03:20]} Nxc4 {[%clk 00:48:03]} {[%emt 00:01:36]} 19. dxc4
{[%clk 00:57:10]} {[%emt 00:03:33]} d6 {[%clk 00:46:17]} {[%emt 00:02:17]} 20.
Ng4 {[%clk 00:55:53]} {[%emt 00:01:46]} Kh7 {[%clk 00:45:53]} {[%emt 00:00:55]}
21. Qf5+ {[%clk 00:45:19]} {[%emt 00:11:04]} Kh8 {[%clk 00:45:13]} {[%emt
00:01:09]} 22. Bxh6 {[%clk 00:44:45]} {[%emt 00:01:05]} gxh6 {[%clk 00:44:25]}
{[%emt 00:01:18]} 23. Nxe7 {[%clk 00:41:17]} {[%emt 00:03:58]} Qxe7 {[%clk
00:43:24]} {[%emt 00:01:31]} 24. Nf6 {[%clk 00:41:45]} {[%emt 00:00:02]} Bxe4
{[%clk 00:42:35]} {[%emt 00:01:19]} 25. Rxe4 {[%clk 00:42:01]} {[%emt
00:00:14]} 1-0

[Event "Goteborg Open 2018"]
[Site "Molnlycke kulturhus, Biblioteksgatan 2, Molnlycke, Sweden"]
[Date "2018.08.18"]
[Round "6.9"]
[White "Strom-Engdahl, Alexander"]
[Black "Bengtsson, Jessica"]
[Result "1/2-1/2"]
[TimeControl "15 minutes + 5 seconds per move from move one (Round 1 - 4) / 90 minutes + 30 seconds per move from move one (Round 5 - 8)"]
[WhiteFideId "1741586"]
[BlackFideId "1711083"]
[WhiteElo "1747"]
[BlackElo "1978"]

1. c4 {[%clk 01:30:45]} {[%emt 00:00:14]} e6 {[%clk 01:30:49]} {[%emt
00:00:12]} 2. g3 {[%clk 01:30:58]} {[%emt 00:00:15]} d5 {[%clk 01:31:12]}
{[%emt 00:00:09]} 3. Bg2 {[%clk 01:31:15]} {[%emt 00:00:12]} Nf6 {[%clk
01:31:35]} {[%emt 00:00:09]} 4. cxd5 {[%clk 01:30:57]} {[%emt 00:00:47]} exd5
{[%clk 01:31:25]} {[%emt 00:00:40]} 5. Nc3 {[%clk 01:31:12]} {[%emt 00:00:15]}
c6 {[%clk 01:30:09]} {[%emt 00:01:47]} 6. d3 {[%clk 01:31:08]} {[%emt
00:00:34]} Bd6 {[%clk 01:28:57]} {[%emt 00:01:42]} 7. Bg5 {[%clk 01:30:29]}
{[%emt 00:01:09]} h6 {[%clk 01:28:06]} {[%emt 00:01:20]} 8. Bxf6 {[%clk
01:30:32]} {[%emt 00:00:28]} Qxf6 {[%clk 01:28:08]} {[%emt 00:00:29]} 9. Nf3
{[%clk 01:29:31]} {[%emt 00:01:30]} O-O {[%clk 01:25:42]} {[%emt 00:02:56]} 10.
O-O {[%clk 01:29:38]} {[%emt 00:00:23]} Bg4 {[%clk 01:22:05]} {[%emt 00:04:07]}
11. Qb3 {[%clk 01:26:55]} {[%emt 00:03:14]} Qe7 {[%clk 01:15:42]} {[%emt
00:06:52]} 12. e4 {[%clk 01:25:12]} {[%emt 00:02:13]} dxe4 {[%clk 01:13:45]}
{[%emt 00:02:27]} 13. dxe4 {[%clk 01:23:20]} {[%emt 00:02:22]} Na6 {[%clk
01:12:11]} {[%emt 00:02:04]} 14. h3 {[%clk 01:16:45]} {[%emt 00:07:05]} Be6
{[%clk 01:11:15]} {[%emt 00:01:26]} 15. Qc2 {[%clk 01:16:20]} {[%emt 00:00:54]}
Nb4 {[%clk 01:09:34]} {[%emt 00:02:12]} 16. Qe2 {[%clk 01:16:22]} {[%emt
00:00:28]} b5 {[%clk 01:02:17]} {[%emt 00:07:47]} 17. b3 {[%clk 01:16:33]}
{[%emt 00:00:19]} Rab8 {[%clk 00:57:30]} {[%emt 00:05:15]} 18. Rac1 {[%clk
01:10:45]} {[%emt 00:06:19]} Na6 {[%clk 00:53:29]} {[%emt 00:04:33]} 19. e5
{[%clk 01:10:09]} {[%emt 00:01:05]} Ba3 {[%clk 00:52:42]} {[%emt 00:01:15]} 20.
Rcd1 {[%clk 01:09:50]} {[%emt 00:00:50]} Bb4 {[%clk 00:51:59]} {[%emt
00:01:13]} 21. Rc1 {[%clk 01:02:18]} {[%emt 00:08:02]} Rfd8 {[%clk 00:46:59]}
{[%emt 00:05:29]} 22. Rfd1 {[%clk 00:59:39]} {[%emt 00:03:09]} Rxd1+ {[%clk
00:46:13]} {[%emt 00:01:16]} 23. Nxd1 {[%clk 00:59:40]} {[%emt 00:00:30]} c5
{[%clk 00:44:48]} {[%emt 00:01:55]} 24. Nc3 {[%clk 00:54:35]} {[%emt 00:05:35]}
Nc7 {[%clk 00:43:31]} {[%emt 00:01:46]} 25. Qc2 {[%clk 00:50:28]} {[%emt
00:04:38]} Rd8 {[%clk 00:41:52]} {[%emt 00:02:08]} 26. Ne4 {[%clk 00:48:39]}
{[%emt 00:02:20]} Ba3 {[%clk 00:36:14]} {[%emt 00:06:07]} 27. Rd1 {[%clk
00:46:47]} {[%emt 00:02:22]} Rxd1+ {[%clk 00:33:27]} {[%emt 00:03:18]} 28. Qxd1
{[%clk 00:46:58]} {[%emt 00:00:20]} c4 {[%clk 00:30:56]} {[%emt 00:03:00]} 29.
Qc2 {[%clk 00:38:00]} {[%emt 00:09:27]} Qd7 {[%clk 00:27:52]} {[%emt 00:03:33]}
30. Nfd2 {[%clk 00:37:56]} {[%emt 00:00:35]} cxb3 {[%clk 00:26:48]} {[%emt
00:01:35]} 31. Nxb3 {[%clk 00:37:39]} {[%emt 00:00:47]} Bd5 {[%clk 00:24:03]}
{[%emt 00:03:14]} 32. Qd3 {[%clk 00:32:22]} {[%emt 00:05:47]} 1/2-1/2

[Event "Goteborg Open 2018"]
[Site "Molnlycke kulturhus, Biblioteksgatan 2, Molnlycke, Sweden"]
[Date "2018.08.18"]
[Round "6.10"]
[White "Berg, Roy"]
[Black "Wellevit, Tomas"]
[Result "1/2-1/2"]
[TimeControl "15 minutes + 5 seconds per move from move one (Round 1 - 4) / 90 minutes + 30 seconds per move from move one (Round 5 - 8)"]
[WhiteFideId "1711458"]
[BlackFideId "1731963"]
[WhiteElo "1957"]
[BlackElo "1905"]

1. d4 {[%clk 01:30:58]} {[%emt 00:00:01]} d5 {[%clk 01:30:58]} {[%emt
00:00:03]} 2. Nf3 {[%clk 01:31:20]} {[%emt 00:00:08]} Nf6 {[%clk 01:31:14]}
{[%emt 00:00:15]} 3. g3 {[%clk 01:31:27]} {[%emt 00:00:22]} Nc6 {[%clk
01:30:59]} {[%emt 00:00:46]} 4. Bg2 {[%clk 01:31:13]} {[%emt 00:00:44]} h6
{[%clk 01:30:37]} {[%emt 00:00:52]} 5. c4 {[%clk 01:28:34]} {[%emt 00:03:09]}
e6 {[%clk 01:27:58]} {[%emt 00:03:09]} 6. O-O {[%clk 01:28:14]} {[%emt
00:00:50]} Be7 {[%clk 01:28:16]} {[%emt 00:00:12]} 7. b3 {[%clk 01:22:36]}
{[%emt 00:06:08]} a5 {[%clk 01:28:19]} {[%emt 00:00:27]} 8. Nc3 {[%clk
01:22:14]} {[%emt 00:00:52]} Ne4 {[%clk 01:27:33]} {[%emt 00:01:16]} 9. Bb2
{[%clk 01:20:03]} {[%emt 00:02:40]} f5 {[%clk 01:27:23]} {[%emt 00:00:40]} 10.
Nxe4 {[%clk 01:14:12]} {[%emt 00:06:22]} fxe4 {[%clk 01:27:40]} {[%emt
00:00:13]} 11. Ne5 {[%clk 01:14:04]} {[%emt 00:00:37]} Nxe5 {[%clk 01:27:31]}
{[%emt 00:00:40]} 12. dxe5 {[%clk 01:14:26]} {[%emt 00:00:07]} O-O {[%clk
01:26:43]} {[%emt 00:01:18]} 13. Qc2 {[%clk 01:11:24]} {[%emt 00:03:33]} c6
{[%clk 01:26:09]} {[%emt 00:01:04]} 14. Rad1 {[%clk 01:11:15]} {[%emt
00:00:39]} Qe8 {[%clk 01:26:21]} {[%emt 00:00:19]} 15. f3 {[%clk 01:08:01]}
{[%emt 00:03:43]} exf3 {[%clk 01:24:20]} {[%emt 00:02:31]} 16. Rxf3 {[%clk
01:03:14]} {[%emt 00:05:17]} Bd7 {[%clk 01:21:40]} {[%emt 00:03:10]} 17. Rdf1
{[%clk 01:03:03]} {[%emt 00:00:41]} Bc5+ {[%clk 01:21:59]} {[%emt 00:00:11]} 18.
Kh1 {[%clk 01:02:45]} {[%emt 00:00:48]} Qe7 {[%clk 01:22:15]} {[%emt 00:00:13]}
19. Bh3 {[%clk 00:59:10]} {[%emt 00:04:06]} Rxf3 {[%clk 01:21:27]} {[%emt
00:01:18]} 20. exf3 {[%clk 00:56:51]} {[%emt 00:02:49]} b5 {[%clk 01:20:41]}
{[%emt 00:01:17]} 21. cxd5 {[%clk 00:46:42]} {[%emt 00:10:39]} cxd5 {[%clk
01:20:21]} {[%emt 00:00:50]} 22. Qd3 {[%clk 00:45:19]} {[%emt 00:01:53]} a4
{[%clk 01:18:36]} {[%emt 00:02:15]} 23. f4 {[%clk 00:45:08]} {[%emt 00:00:41]}
axb3 {[%clk 01:18:03]} {[%emt 00:01:04]} 24. axb3 {[%clk 00:44:56]} {[%emt
00:00:41]} Rd8 {[%clk 01:14:02]} {[%emt 00:04:32]} 25. Ra1 {[%clk 00:41:05]}
{[%emt 00:04:21]} h5 {[%clk 01:12:01]} {[%emt 00:02:31]} 26. Bd4 {[%clk
00:38:59]} {[%emt 00:02:36]} Rc8 {[%clk 01:06:41]} {[%emt 00:05:50]} 27. Bb2
{[%clk 00:38:29]} {[%emt 00:01:00]} h4 {[%clk 01:05:19]} {[%emt 00:01:53]} 28.
Rc1 {[%clk 00:35:16]} {[%emt 00:03:43]} hxg3 {[%clk 01:05:22]} {[%emt
00:00:27]} 29. hxg3 {[%clk 00:35:17]} {[%emt 00:00:28]} Qe8 {[%clk 01:04:39]}
{[%emt 00:01:12]} 30. Bg4 {[%clk 00:34:07]} {[%emt 00:01:41]} b4 {[%clk
01:03:25]} {[%emt 00:01:44]} 31. Be2 {[%clk 00:32:56]} {[%emt 00:01:41]} g6
{[%clk 01:02:06]} {[%emt 00:01:50]} 32. Kg2 {[%clk 00:31:33]} {[%emt 00:01:52]}
Kg7 {[%clk 01:01:55]} {[%emt 00:00:41]} 33. Qf3 {[%clk 00:28:16]} {[%emt
00:03:48]} Qd8 {[%clk 01:00:47]} {[%emt 00:01:38]} 34. Bd3 {[%clk 00:27:46]}
{[%emt 00:01:00]} Ba7 {[%clk 01:00:02]} {[%emt 00:01:15]} 35. Rxc8 {[%clk
00:25:47]} {[%emt 00:02:29]} Qxc8 {[%clk 01:00:14]} {[%emt 00:00:18]} 36. Qg4
{[%clk 00:25:35]} {[%emt 00:00:42]} Be8 {[%clk 01:00:22]} {[%emt 00:00:20]} 37.
Qg5 {[%clk 00:22:17]} {[%emt 00:03:49]} 1/2-1/2